Cogmind - Beta 11 @@@ ROGUE MODE // 2022.03.22 @ 11:35:57 Player: gammafunk Result: Destroyed by as-06381 with Assembled Heavy Rifle Performance ------------- Evolutions (0) 0 Regions Visited (2) 400 Robots Destroyed (26) 130 Value Destroyed (650) 650 Prototype IDs (2) 40 Alien Tech Used (0) 0 Bonus (0) 0 TOTAL SCORE: 1220 Bonus ------- None Cogmind --------- Core Integrity 0/250 Matter 240/300 Energy 100/100 System Corruption 0% Temperature Cool (0) Movement Treading (240) Ox1 Location -10/Mines Parts ------- > --- POWER (1) -------- (None) > --- PROPULSION (2) --- Light Treads > --- UTILITY (2) ------ Large Storage Unit > --- WEAPON (2) ------- Autogun > --- INVENTORY (15) --- Light Treads Light Treads Light Treads Light Treads High-capacity Storage Unit High-capacity Matter Pod (200) Hardened Light Armor Plating Hardened Light Armor Plating Assault Rifle Light Assault Rifle Autogun Autogun Autogun Grenade Launcher Maul Peak State ------------ > --- POWER ------------ Light Ion Engine > --- PROPULSION ------- Light Treads Light Treads > --- UTILITY ---------- Large Storage Unit Hardened Light Armor Plating > --- WEAPON ----------- Autogun Autogun > --- INVENTORY -------- Light Treads Light Treads Light Treads Light Treads Heat Sink High-capacity Storage Unit Hardened Light Armor Plating Hardened Light Armor Plating EM Pulse Gun Assault Rifle Light Assault Rifle Autogun Autogun Grenade Launcher Maul [Rating: 12] Favorites ----------- Power Light Ion Engine Engine Light Ion Engine Propulsion Light Treads Treads Light Treads Utility Hardened Light Armor Plating Device Seismic Detector Storage Large Storage Unit Protection Hardened Light Armor Plating Weapon Assault Rifle Ballistic Gun Assault Rifle Launcher Grenade Launcher Build | -11 -10 -10 ------- Run | Scr Mat Min Slots Evolved . | . . . Power . | . . . Propulsion . | . . . Utility . | . . . Weapon . | . . . Parts Attached 24 | 7 16 1 Power 2 | 1 1 . Engine 2 | 1 1 . Core . | . . . Reactor . | . . . Propulsion 5 | 2 3 . Treads 5 | 2 3 . Leg . | . . . Wheel . | . . . Hover . | . . . Flight . | . . . Utility 8 | 2 6 . Device 2 | 1 1 . Storage 2 | 1 1 . Processor . | . . . Hackware . | . . . Protection 4 | . 4 . Artifact . | . . . Weapon 9 | 2 6 1 Energy Gun . | . . . Energy Cannon . | . . . Ballistic Gun 8 | 2 6 . Ballistic Cannon . | . . . Launcher 1 | . . 1 Special Weapon . | . . . Impact Weapon . | . . . Slashing Weapon . | . . . Piercing Weapon . | . . . Special Melee Weapon . | . . . Unidentified Prototypes . | . . . Parts Lost 6 | . 2 4 Power 2 | . 1 1 Propulsion 1 | . . 1 Utility 1 | . . 1 Weapon 2 | . 1 1 Highest Loss Streak 4 | . 1 4 To Critical Strikes . | . . . Average Slot Usage (%) 99 | . 99 98 Engine 13 | . 14 13 Treads 28 | . 28 28 Device 1 | . 1 . Storage 14 | . 14 14 Protection 12 | . 12 14 Ballistic Gun 27 | . 27 25 Naked Turns . | . . . Heaviest Build 34 | 14 34 34 Greatest Support 40 | 40 40 40 Greatest Overweight (x) 1 | 1 . 1 Average Overweight (x) . | . . . Largest Inventory Capacity 15 | 8 15 15 Average Capacity 12 | 7 12 15 Most Carried 15 | 5 15 15 Average Carried 9 | 3 9 15 Final Capacity 15 | 8 15 15 Final Carried 15 | 5 15 15 Class Distribution -------------------- 100% | Mutant Dominant Class ---------------- Mutant | -10/Materials Mutant | -10/Mines Resources | -11 -10 -10 ----------- Run | Scr Mat Min Matter Collected 1040 | 302 738 . Remotely . | . . . Salvage Created 1159 | 130 1004 25 Parts 61 | 8 53 . Haulers Intercepted 2 | . 2 . Recyclers Shooed 3 | . 3 . Parts Field Recycled . | . . . Retrieved Matter . | . . . Parts Self-Destructed . | . . . Prevented . | . . . Kills | -11 -10 -10 ------- Run | Scr Mat Min Combat Hostiles Destroyed 24 | . 15 9 Guns 15 | . 15 . AOE 9 | . . 9 Classes Destroyed 6 | 2 3 1 Tunneler 3 | 3 . . Hauler 2 | . 2 . Recycler 3 | 1 2 . Watcher 3 | . 3 . Grunt 15 | . 15 . Assembled 9 | . . 9 Best Kill Streak 9 | 3 5 9 Combat Bots Only 9 | . 2 9 Max Kills in Single Turn 4 | 1 1 4 Gunslinging . | . . . Exploded 4 | . . 4 Melee . | . . . Uniques/NPCs Destroyed . | . . . Combat | -11 -10 -10 -------- Run | Scr Mat Min Damage Taken 1439 | . 801 638 Core 252 | . 160 92 Absorbed by Shields . | . . . Regen/Repaired (Parts) 214 | . 214 . Core Remaining (%) 100 | 100 . . Volleys Fired 92 | 8 77 7 Largest 2 | 2 2 1 Hottest 40 | 40 40 30 Shots Fired 177 | 16 154 7 Gun 170 | 16 154 . Cannon . | . . . Launcher 7 | . . 7 Special . | . . . Kinetic 170 | 16 154 . Thermal . | . . . Explosive 7 | . . 7 Electromagnetic . | . . . Robot Hit Streak 12 | 5 12 7 Robot Miss Streak 3 | 2 3 1 Penetration Max . | . . . Secondary Targets 1 | . 1 . Max Gunslinging Chain 1 | . 1 . Shots Hit Robots 124 | 10 108 6 Core Hits 68 | 6 43 19 Critical Kills 1 | . 1 . Critical Parts Destroyed . | . . . Critical Strikes 1 | . 1 . Destroy 1 | . 1 . Melee Attacks . | . . . Impact . | . . . Slashing . | . . . Piercing . | . . . Sneak Attacks . | . . . Combat Hostiles . | . . . Follow-up Attacks . | . . . Damage Inflicted 1992 | 109 1338 545 Guns 1438 | 109 1329 . Cannons . | . . . Explosions 545 | . . 545 Melee . | . . . Ramming 9 | . 9 . Kinetic 1438 | 109 1329 . Thermal . | . . . Explosive 545 | . . 545 Electromagnetic . | . . . Impact . | . . . Slashing . | . . . Piercing . | . . . Highest Corruption . | . . . Average Corruption . | . . . Corruption Purged . | . . . Corruption Blocked . | . . . Overload Shots . | . . . Overflow Damage 39 | . . 39 Projectiles . | . . . Explosions 39 | . . 39 Melee . | . . . Knockbacks . | . . . Impact . | . . . Kinetic . | . . . Secondary . | . . . Self-Inflicted Damage 135 | . . 135 Shots 5 | . . 5 Rammed 3 | . 3 . Targets Rammed 3 | . 3 . Kicked . | . . . Crushed . | . . . Highest Temperature 71 | . 71 40 Average Temperature 20 | . 20 27 Received Heat Transfer 562 | . 462 100 Siege Activations . | . . . Robots Corrupted . | . . . Combat Hostiles . | . . . Parts Fried . | . . . Impact Corruptions . | . . . Robots Melted . | . . . Combat Hostiles . | . . . Parts Melted . | . . . Heat Transferred . | . . . Parts Sabotaged . | . . . Parts Stolen . | . . . Parts Stripped . | . . . Power Chain Reactions . | . . . Missiles Intercepted . | . . . Alert | -11 -10 -10 ------- Run | Scr Mat Min Peak Influence 255 | 20 255 130 Initial 48 | . 13 48 Average 125 | 8 142 61 Maximum Alert Level 1 | . 1 . Low Security (%) 87 | 100 85 100 Level 1 12 | . 14 . Level 2 . | . . . Level 3 . | . . . Level 4 . | . . . Level 5 . | . . . High Security . | . . . Max Security . | . . . Squads Dispatched 4 | . 4 . Investigation 1 | . 1 . Extermination . | . . . Reinforcement 3 | . 3 . Assault . | . . . Garrison . | . . . Intercept . | . . . Searches Triggered . | . . . Construction Impeded . | . . . Haulers Reinforced . | . . . Active Scanning Responses . | . . . Cargo Convoy Interrupts . | . . . Stealth | -11 -10 -10 --------- Run | Scr Mat Min Distress Signals 1 | . 1 . Communications Jammed . | . . . Distress Signals . | . . . Times Spotted 43 | . 29 14 Peak Tracking Total 6 | . 4 6 Tactical Retreats 2 | . 2 . Traps | -11 -10 -10 ------- Run | Scr Mat Min Traps Triggered 1 | . 1 . Indirectly . | . . . Trap Hack Attempts . | . . . Triggered . | . . . Disarmed . | . . . Reprogrammed . | . . . Reused . | . . . Traps Extracted . | . . . Installed . | . . . Triggered 1 | . . 1 Machines | -11 -10 -10 ---------- Run | Scr Mat Min Machines Disabled 1 | . . 1 Max in Single Turn 1 | . . 1 Machines Sabotaged . | . . . Garrisons Compromised . | . . . Overloaded Fab Kills . | . . . Hacking | -11 -10 -10 --------- Run | Scr Mat Min Machines Accessed 5 | . 5 . Terminals 4 | . 4 . Fabricators . | . . . Repair Stations 1 | . 1 . Recycling Units . | . . . Scanalyzers . | . . . Garrison Access . | . . . Total Hacks 20 | . 20 . Successful 15 | . 15 . Failed 5 | . 5 . Catastrophic . | . . . Database Lockouts . | . . . Manual 10 | . 10 . Terminals 14 | . 14 . Fabricators . | . . . Repair Stations 6 | . 6 . Recycling Units . | . . . Scanalyzers . | . . . Garrison Access . | . . . Terminal Hacks 6 | . 6 . Part Schematic 1 | . 1 . Robot Analysis 2 | . 2 . Prototype ID Bank 1 | . 1 . Locate Traps 1 | . 1 . Hauler Manifests 1 | . 1 . Fabricator Hacks . | . . . Repair Station Hacks 6 | . 6 . Scan Component 3 | . 3 . Repair 3 | . 3 . Recycling Unit Hacks . | . . . Scanalyzer . | . . . Garrison Access Hacks . | . . . Unauthorized Hacks 3 | . 3 . Terminals 3 | . 3 . Assimilate 1 | . 1 . Botnet 2 | . 2 . Fabricators . | . . . Repair Stations . | . . . Recycling Units . | . . . Scanalyzers . | . . . Garrison Access . | . . . Data Cores Recovered . | . . . Used . | . . . Hacking Detections 5 | . 5 . Full Trace Events . | . . . Feedback Events . | . . . Feedback Blocked . | . . . Robot Schematics Acquired . | . . . Robots Built . | . . . Authchips . | . . . Time . | . . . Total Robot Build Rating . | . . . Part Schematics Acquired 1 | . 1 . Parts Built . | . . . Authchips . | . . . Time . | . . . Total Part Build Rating . | . . . Parts Repaired 3 | . 3 . Time 78 | . 78 . Parts Recycled . | . . . Recycled Matter . | . . . Retrieved Matter . | . . . Retrieved Components . | . . . Parts Scanalyzed . | . . . Part Schematics Acquired . | . . . Parts Damaged . | . . . Bothacking | -11 -10 -10 ------------ Run | Scr Mat Min Used RIF Installer . | . . . Robots Hacked . | . . . Non-combat . | . . . Combat . | . . . Robot Hacks Applied . | . . . Relay Couplers Released . | . . . Fabnet Peak Effective % . | . . . Robots Rewired . | . . . Allies Hacked . | . . . Hacks Repelled . | . . . Allies | -11 -10 -10 -------- Run | Scr Mat Min Total Allies 1 | . 1 . Largest Group 1 | . 1 1 Highest-Rated Group 10 | . 10 10 Highest-Rated Ally 10 | . 10 10 Total Orders 1 | . . 1 STAY 1 | . . 1 Ally Attacks . | . . . Total Damage . | . . . Kills . | . . . Allies Corrupted . | . . . Allies Melted . | . . . Intel | -11 -10 -10 ------- Run | Scr Mat Min Robot Analysis Total 2 | . 2 . Derelict Logs Recovered . | . . . Drone Launches . | . . . Drone Recoveries . | . . . Exploration | -11 -10 -10 ------------- Run | Scr Mat Min Turns Passed 1873 | 151 1584 138 Spaces Moved 901 | 74 751 76 Core 4 | 4 . . Treads 897 | 70 751 76 Legs . | . . . Wheels . | . . . Hover . | . . . Flight . | . . . Fastest Speed 50 | 50 160 160 Average Speed 159 | 154 160 161 Slowest Speed 240 | 160 160 240 Overloaded Moves . | . . . Propulsion Burnouts . | . . . Robots Hopped . | . . . Cave-ins Triggered . | . . . Exploration Rate (%) 40 | 5 99 17 Regions Visited 2 Branch Regions 1 Pre-discovered Areas . | . . . Known Exits Taken . | . . . Unknown Exits Taken 2 | 1 1 . Scrap Searched . | . . . Spaces Dug . | . . . Terrain Destroyed 20 | . . 20 Melee . | . . . Projectile . | . . . AOE 20 | . . 20 Terrain Rammed . | . . . Walls Destroyed . | . . . Machines Disabled . | . . . Actions | -11 -10 -10 --------- Run | Scr Mat Min Total 1161 | 93 984 84 Wait 116 | . 116 . Move 899 | 73 750 76 Hop . | . . . Pick Up 16 | 5 11 . Fast Attach 12 | 7 5 . Attach 2 | . 2 . Detach 2 | . 2 . Swap 10 | . 9 1 Drop 9 | . 9 . Fire 92 | 8 77 7 Melee . | . . . Ram . | . . . Kick . | . . . Crush 3 | . 3 . Escape Stasis . | . . . Rewire . | . . . Trap . | . . . Miscellaneous . | . . . Route ------- -11/Scrapyard -10/Materials (discovered 4 exits: [*Mat x3] / [*Min]) -10/Mines History --------- Turn | Location | Event 7 | -11/Scrapyard | Discovered new exit (range 16) 152 | -11/Scrapyard | Entered Materials 301 | -10/Materials | Build established: Mutant 415 | -10/Materials | Discovered new exit (range 8) 486 | -10/Materials | Core integrity fell below 50% 891 | -10/Materials | Discovered new exit (range 6) 1259 | -10/Materials | Discovered new exit (range 3) 1368 | -10/Materials | Repaired Assault Rifle 1396 | -10/Materials | Repaired Lgt. Assault Rifle 1423 | -10/Materials | Repaired Lgt. Treads 1460 | -10/Materials | Discovered new exit (range 10) 1736 | -10/Materials | Entered Mines 1736 | -10/Mines | Accompanied by 1 ally 1824 | -10/Mines | Assembled infested the area 1847 | -10/Mines | Core integrity fell below 20% 1874 | -10/Mines | Destroyed by as-06381 with Assembled Heavy Rifle Last Messages --------------- 01858_ as-99383 destroyed. 01859_ T-07 Excavator is excavating. 01862_ Destroyed Asb. Hover Unit. 01862_ as-67900 destroyed. 01863_ T-07 Excavator is excavating. 01864_ as-34828 destroyed. 01864_ Destroyed Asb. F-torch. 01864_ as-73243 destroyed. 01865_ Lgt. Ion Engine destroyed. 01867_ C-30 ARC bursts open, deploying its payload. 01867_ D-53 Grenadier unfolds itself. 01867_ T-07 Excavator is excavating. 01868_ Critical hit (Burn: +80). 01869_ as-34483 destroyed. 01871_ The unstable cave ceiling collapses. 01872_ T-07 Excavator is excavating. 01872_ Lgt. Treads destroyed. 01873_ The unstable cave ceiling collapses. 01873_ Grenade Launcher destroyed. 01873_ Hrd. Light Armor Plating destroyed. Map ----- +----------------------------------------------------+ | # ?# ??????????????????????????? | | # ## #??????????????????????????? | | # #??????????????????????????? | | ? #??????????????????????????? | | ?# #??????????????????????????? | | ??# #??????????????????????????? | | ???# #??????????????????????????? | | ????# ##?????????????????????????? | | ????# #?????????????????????????? | | ???## #?????????????????????????? | | ???# ####??????????????????????? | | ???# % ###????????????????????? | | ???# ##???????????????????? | | ??## #####???????????????? | | ?## % #???????????????? | | ?# ##??????????????? | | ?# #??????????????? | | ?## #??????????????? | | ??## #??????????????? | | ???#### ##??????????????? | | ??????# #??????????????? | | ??????# d ##?????????????? | | ??????## ## ???????? | | ???????# ???????? | | ???????# d ???????? | | ???????# @ ## "%" ???????? | | ?????### #?### ######????????? | | ?????# #???? #?????????????? | | ?????# ## #????#?????????????? | | ?????# #### #?????????????????? | | ?????# #??# #?????????????????? | | ?????# #?? t ##?????????????????? | | ?????# #??# ##??????????????????? | | ?????# #???####???????????????????? | | ?????# #??????????????????????????? | | ?????# #??????????????????????????? | | ????## #??????????????????????????? | | ???## ##?????????????????????????? | | ???# #?????????????????????????? | | ???# ##????????????????????????? | | ???## #????????????????????????? | | ????# ##???????????????????????? | | ????# #???????????????????????? | | ????# #???????????????????????? | | ????# #???????????????????????? | | ????# ##???????????????????????? | | ????## ##????????????????????????? | | ?????####?????????????????????????? | | ??????????????????????????????????? | | ??????????????????????????????????? | +----------------------------------------------------+ Best States ------------- Heat Dissipation 35 Energy Generation 10 Energy Capacity 250 Matter Stores 300 Matter Capacity 300 Sight Range 16 Terrain Scan Density 10 Armor Coverage 150 Core Shielding 20 Evasion (%) 40 Recoil Reduction 2 Item Schematics ----------------- Huge Storage Unit | -10/Materials | Hacked Robot Schematics ------------------ None Fabricated ------------ Nothing Alien Tech Used ----------------- None Achievements -------------- None Challenges ------------ None Game ------ Seed AerolevThermalLaser Manual? 0 Play Time 00:11:46 Cumulative 420.8 hours Start 2022.03.21 @ 12:29:36 End 2022.03.22 @ 11:35:57 Sessions 2 Manual Loads 0 Difficulty Rogue Special Mode None Game No. 180 Rogue 180 Adventurer 0 Explorer 0 Win Type - Total 8 Types 3/2/1/0/0/2/0/0/0 Lore% 65 Gallery% 66 Achievement% 60 Wizard Run 0 Options --------- ASCII 0 Keyboard 1 Movement Vi Keybinds 0 Fullscreen 2 Font 12/Smallcaps Map View 60x54 Tactical HUD 1 Map Filters NONE Filters NONE Steam 1 RUN: 799344e6-da85-47a0-98f7-f3b4f5af6b67